[Event "ONJK-B 2019"]
[Site "Borne"]
[Date "2019.08.05"]
[Round "1.11"]
[White "Mainka, Irmin"]
[Black "Schoonhoven, Mark"]
[Result "0-1"]
[ECO "C70"]
[WhiteElo "1611"]
[BlackElo "1275"]
[Annotator "NA"]
[PlyCount "106"]
[EventDate "2019.08.05"]
[EventType "swiss"]
[EventCountry "NED"]
[SourceTitle "playchess.com"]
[Source "ChessBase"]
[SourceQuality "1"]
[TimeControl "5400+30"]

1. e4 {[%emt 0:00:00]} e5 {[%emt 0:00:00]} 2. Nf3 {[%emt 0:00:00]} Nc6 {[%emt 0:00:00]} 3. Bb5 {[%emt 0:00:00]} a6 {[%emt 0:00:17]} 4. Ba4 {[%emt 0:00:00]} b5 {[%emt 0:00:19]} 5. Bb3 {[%emt 0:00:00]} Bc5 {[%emt 0:00:12]} 6. c3 {[%emt 0:00:15]} Bb6 {[%emt 0:01:55]} 7. O-O {[%emt 0:00:09]} d6 {[%emt 0:00:31]} 8. Re1 {[%emt 0:00:15]} Nf6 {[%emt 0:02:00]} 9. h3 {[%emt 0:00:34]} O-O {[%emt 0:01:17]} 10. d3 {[%emt 0:00:17]} Be6 {[%emt 0:01:22]} 11. Bc2 {[%emt 0:00:08]} Ne7 {[%emt 0:02:39]} 12. Nbd2 {[%emt 0:00:18]} Ng6 {[%emt 0:00:14]} 13. Nf1 {[%emt 0:00:12]} Nh5 {[%emt 0:00:57]} 14. d4 {[%emt 0:01:09]} Nhf4 {[%emt 0:05:17]} 15. dxe5 {[%emt 0:02:29]} Bxh3 {[%emt 0:04:48]} 16. Bxf4 {[%emt 0:01:19]} Nxf4 {[%emt 0:00:17]} 17. gxh3 {[%emt 0:00:32]} Nxh3+ {[%emt 0:00:08]} 18. Kg2 {[%emt 0:00:24]} Nxf2 {[%emt 0:01:00]} 19. Qd5 {[%emt 0:00:38]} Qd7 {[%emt 0:01:00]} 20. e6 {[%emt 0:00:14]} fxe6 {[%emt 0:00:41]} 21. Qh5 {[%emt 0:00:14]} e5 {[%emt 0:02:12]} 22. Bb3+ {[%emt 0:00:37]} Kh8 {[%emt 0:01:39]} 23. Ng5 {[%emt 0:00:11]} Qg4+ {[%emt 0:00:58]} 24. Qxg4 {[%emt 0:00:10]} Nxg4 {[%emt 0:00:04]} 25. Nf7+ {[%emt 0:00:09]} Rxf7 {[%emt 0:00:41]} 26. Bxf7 {[%emt 0:00:21]} Rf8 {[%emt 0:01:01]} 27. Be6 {[%emt 0:00:27]} Nf2 {[%emt 0:02:01]} 28. b3 {[%emt 0:00:49]} Nd3 {[%emt 0:00:29]} 29. Ne3 {[%emt 0:01:14]} Nf4+ {[%emt 0:00:40]} 30. Kg3 {[%emt 0:00:27]} Nxe6 {[%emt 0:00:10]} 31. Rad1 {[%emt 0:02:31]} Rf6 {[%emt 0:03:43]} 32. Nd5 {[%emt 0:01:32]} Bf2+ {[%emt 0:07:06]} 33. Kg2 {[%emt 0:00:12]} Nf4+ {[%emt 0:02:24]} 34. Kxf2 {[%emt 0:01:02]} Nxd5+ {[%emt 0:00:12]} 35. Kg3 {[%emt 0:00:27]} Nxc3 {[%emt 0:02:11]} 36. Rc1 {[%emt 0:00:11]} b4 {[%emt 0:00:10]} 37. a3 {[%emt 0:00:10]} c5 {[%emt 0:01:56]} 38. axb4 {[%emt 0:00:12]} Na2 {[%emt 0:00:14]} 39. bxc5 {[%emt 0:01:16]} Nxc1 {[%emt 0:01:29]} 40. c6 {[%emt 0:02:51]} Nd3 {[%emt 0:02:27]} 41. Rd1 {[%emt 0:00:16]} Nc5 {[%emt 0:07:50]} 42. c7 {[%emt 0:00:10]} Rf8 {[%emt 0:00:15]} 43. Kg4 {[%emt 0:01:12]} Nxe4 {[%emt 0:01:32]} 44. Ra1 {[%emt 0:00:21]} Rc8 {[%emt 0:00:55]} 45. Rxa6 {[%emt 0:00:12]} Nf6+ {[%emt 0:00:07]} 46. Kf5 {[%emt 0:00:21]} Rxc7 {[%emt 0:00:16]} 47. Rxd6 {[%emt 0:00:22]} Rb7 {[%emt 0:01:36]} 48. Rd8+ {[%emt 0:00:06]} Ng8 {[%emt 0:00:00]} 49. Rd3 {[%emt 0:00:08]} Rb5 {[%emt 0:00:23]} 50. Ke6 {[%emt 0:00:20]} h6 {[%emt 0:01:07]} 51. Kf7 {[%emt 0:00:20]} Kh7 {[%emt 0:00:41]} 52. Rg3 {[%emt 0:00:14]} g5 {[%emt 0:01:45]} 53. Kf8 {[%emt 0:00:19]} e4 {[%emt 0:01:12]} 0-1

[Event "ONJK-B 2019"]
[Site "Borne"]
[Date "2019.08.05"]
[Round "1.12"]
[White "Li-Behn, Tobias"]
[Black "Arnold, Kiri"]
[Result "0-1"]
[ECO "A57"]
[WhiteElo "1237"]
[BlackElo "1555"]
[Annotator "NA"]
[PlyCount "112"]
[EventDate "2019.08.05"]
[EventType "swiss"]
[EventCountry "NED"]
[SourceTitle "playchess.com"]
[Source "ChessBase"]
[SourceQuality "1"]
[TimeControl "5400+30"]

1. d4 {[%emt 0:00:00]} Nf6 {[%emt 0:00:00]} 2. c4 {[%emt 0:00:00]} c5 {[%emt 0:00:00]} 3. d5 {[%emt 0:00:08]} b5 {[%emt 0:00:00]} 4. e3 {[%emt 0:02:19]} g6 {[%emt 0:04:28]} 5. Nf3 {[%emt 0:06:20]} Bg7 {[%emt 0:01:52]} 6. cxb5 {[%emt 0:05:04]} a6 {[%emt 0:00:44]} 7. Nc3 {[%emt 0:03:11]} axb5 {[%emt 0:00:32]} 8. Bxb5 {[%emt 0:02:00]} Ba6 {[%emt 0:04:22]} 9. O-O {[%emt 0:03:45]} Bxb5 {[%emt 0:02:51]} 10. Nxb5 {[%emt 0:01:07]} d6 {[%emt 0:00:27]} 11. Qb3 {[%emt 0:03:16]} O-O {[%emt 0:01:24]} 12. Re1 {[%emt 0:02:12]} Nbd7 {[%emt 0:01:18]} 13. Nc3 {[%emt 0:03:15]} Qa5 {[%emt 0:04:23]} 14. e4 {[%emt 0:04:16]} Rfb8 {[%emt 0:01:48]} 15. Qc2 {[%emt 0:01:38]} Ng4 {[%emt 0:07:17]} 16. Bf4 {[%emt 0:07:50]} Qb4 {[%emt 0:05:22]} 17. Rab1 {[%emt 0:07:22]} Qa5 {[%emt 0:14:23]} 18. h3 {[%emt 0:04:27]} Nge5 {[%emt 0:02:01]} 19. Nxe5 {[%emt 0:02:25]} Nxe5 {[%emt 0:00:45]} 20. b3 {[%emt 0:02:56]} c4 {[%emt 0:21:10]} 21. Bxe5 {[%emt 0:10:06]} Bxe5 {[%emt 0:00:03]} 22. Na4 {[%emt 0:00:26]} cxb3 {[%emt 0:00:27]} 23. axb3 {[%emt 0:01:38]} Rc8 {[%emt 0:01:56]} 24. Qd3 {[%emt 0:02:23]} Rab8 {[%emt 0:00:35]} 25. Rec1 {[%emt 0:02:46]} Rxc1+ {[%emt 0:02:29]} 26. Rxc1 {[%emt 0:00:03]} Qb4 {[%emt 0:00:03]} 27. Rb1 {[%emt 0:02:23]} Rc8 {[%emt 0:00:36]} 28. g3 {[%emt 0:01:20]} Qb7 {[%emt 0:02:39]} 29. Kg2 {[%emt 0:02:47]} Qb4 {[%emt 0:00:46]} 30. h4 {[%emt 0:01:00]} Rb8 {[%emt 0:03:05]} 31. Qc2 {[%emt 0:02:22]} Qb7 {[%emt 0:00:16]} 32. b4 {[%emt 0:00:55]} Rc8 {[%emt 0:01:20]} 33. Qb3 {[%emt 0:01:43]} Qb5 {[%emt 0:00:39]} 34. Kf3 {[%emt 0:00:47]} Rc4 {[%emt 0:01:07]} 35. Qa3 {[%emt 0:01:59]} Rc2 {[%emt 0:01:10]} 36. Kg2 {[%emt 0:01:13]} Qe2 {[%emt 0:00:16]} 37. Qf3 {[%emt 0:00:36]} Qa6 {[%emt 0:01:44]} 38. Qb3 {[%emt 0:01:04]} Qc8 {[%emt 0:02:57]} 39. b5 {[%emt 0:00:38]} Rc7 {[%emt 0:04:07]} 40. b6 {[%emt 0:00:55]} Rb7 {[%emt 0:00:06]} 41. Qb5 {[%emt 0:00:32]} Qc2 {[%emt 0:00:51]} 42. Re1 {[%emt 0:01:20]} Bd4 {[%emt 0:00:23]} 43. Re2 {[%emt 0:00:54]} Qd1 {[%emt 0:00:18]} 44. Ra2 {[%emt 0:01:00]} Qe1 {[%emt 0:01:59]} 45. Qe2 {[%emt 0:01:00]} Qb1 {[%emt 0:01:07]} 46. Qc2 {[%emt 0:00:45]} Qe1 {[%emt 0:00:44]} 47. Qc8+ {[%emt 0:00:28]} Kg7 {[%emt 0:00:20]} 48. Qxb7 {[%emt 0:00:17]} Qxe4+ {[%emt 0:00:01]} 49. Kh2 {[%emt 0:00:29]} Qe1 {[%emt 0:00:47]} 50. Qa6 {[%emt 0:01:34]} Bxf2 {[%emt 0:00:27]} 51. Qd3 {[%emt 0:01:22]} Qg1+ {[%emt 0:00:40]} 52. Kh3 {[%emt 0:00:02]} Qh1+ {[%emt 0:00:13]} 53. Kg4 {[%emt 0:00:29]} f5+ {[%emt 0:01:25]} 54. Kf4 {[%emt 0:00:53]} Qg2 {[%emt 0:02:55]} 55. Rb2 {[%emt 0:01:22]} Bxg3+ {[%emt 0:00:19]} 56. Qxg3 {[%emt 0:00:47]} Qe4+ {[%emt 0:00:03]} 0-1

[Event "ONJK-B 2019"]
[Site "Borne"]
[Date "2019.08.05"]
[Round "1.13"]
[White "Nopper, Louis"]
[Black "Warnaar, Mark"]
[Result "1-0"]
[ECO "A10"]
[WhiteElo "1579"]
[BlackElo "1175"]
[Annotator "NA"]
[PlyCount "59"]
[EventDate "2019.08.05"]
[EventType "swiss"]
[EventCountry "NED"]
[SourceTitle "playchess.com"]
[Source "ChessBase"]
[SourceQuality "1"]
[TimeControl "5400+30"]

1. c4 {[%emt 0:00:00]} f6 {[%emt 0:00:56]} 2. Nc3 {[%emt 0:02:07]} Kf7 {[%emt 0:01:38]} 3. d4 {[%emt 0:01:17]} e6 {[%emt 0:02:07]} 4. Nf3 {[%emt 0:00:48]} Bb4 {[%emt 0:01:41]} 5. Bd2 {[%emt 0:01:24]} Ne7 {[%emt 0:04:05]} 6. a3 {[%emt 0:08:02]} Bxc3 {[%emt 0:00:25]} 7. Bxc3 {[%emt 0:00:08]} d5 {[%emt 0:00:23]} 8. e3 {[%emt 0:00:49]} Re8 {[%emt 0:00:46]} 9. Bd3 {[%emt 0:01:40]} Ng6 {[%emt 0:01:02]} 10. h4 {[%emt 0:02:45]} h5 {[%emt 0:08:10]} 11. Qc2 {[%emt 0:02:33]} Ne7 {[%emt 0:02:15]} 12. c5 {[%emt 0:13:58]} Nbc6 {[%emt 0:06:26]} 13. b4 {[%emt 0:03:37]} a6 {[%emt 0:01:18]} 14. a4 {[%emt 0:08:27]} b6 {[%emt 0:03:05]} 15. O-O {[%emt 0:27:32]} Bd7 {[%emt 0:04:02]} 16. b5 {[%emt 0:03:00]} Nb8 {[%emt 0:01:27]} 17. c6 {[%emt 0:00:28]} Bc8 {[%emt 0:00:09]} 18. Bb4 {[%emt 0:01:16]} a5 {[%emt 0:00:15]} 19. Ba3 {[%emt 0:00:10]} Rh8 {[%emt 0:00:10]} 20. Rae1 {[%emt 0:05:50]} Rh6 {[%emt 0:00:39]} 21. Bxe7 {[%emt 0:02:03]} Qxe7 {[%emt 0:00:09]} 22. e4 {[%emt 0:00:07]} Qd6 {[%emt 0:00:43]} 23. exd5 {[%emt 0:02:15]} Qxd5 {[%emt 0:02:27]} 24. Bc4 {[%emt 0:01:16]} Qd6 {[%emt 0:00:42]} 25. Qb3 {[%emt 0:00:55]} f5 {[%emt 0:00:10]} 26. Ng5+ {[%emt 0:01:00]} Kf8 {[%emt 0:00:21]} 27. Bxe6 {[%emt 0:01:28]} Bxe6 {[%emt 0:00:15]} 28. Nxe6+ {[%emt 0:00:07]} Kf7 {[%emt 0:00:24]} 29. Nxc7+ {[%emt 0:00:19]} Kf8 {[%emt 0:00:13]} 30. Re8# {[%emt 0:00:13]} 1-0

[Event "ONJK-B 2019"]
[Site "Borne"]
[Date "2019.08.05"]
[Round "1.14"]
[White "Wetzels, Finn"]
[Black "Hooijmans, Max"]
[Result "0-1"]
[ECO "C53"]
[WhiteElo "1096"]
[BlackElo "1559"]
[Annotator "NA"]
[PlyCount "94"]
[EventDate "2019.08.05"]
[EventType "swiss"]
[EventCountry "NED"]
[SourceTitle "playchess.com"]
[Source "ChessBase"]
[SourceQuality "1"]
[TimeControl "5400+30"]

1. e4 {[%emt 0:00:00]} e5 {[%emt 0:00:00]} 2. Bc4 {[%emt 0:00:00]} Bc5 {[%emt 0:00:00]} 3. Nf3 {[%emt 0:00:33]} Nc6 {[%emt 0:00:00]} 4. c3 {[%emt 0:01:29]} d6 {[%emt 0:00:13]} 5. d4 {[%emt 0:00:09]} Bb6 {[%emt 0:00:13]} 6. Bg5 {[%emt 0:01:34]} f6 {[%emt 0:00:31]} 7. Be3 {[%emt 0:00:23]} Bg4 {[%emt 0:00:25]} 8. d5 {[%emt 0:02:02]} Bxe3 {[%emt 0:00:50]} 9. fxe3 {[%emt 0:00:10]} Nce7 {[%emt 0:00:43]} 10. h3 {[%emt 0:03:31]} Bxf3 {[%emt 0:00:50]} 11. Qxf3 {[%emt 0:01:58]} Qd7 {[%emt 0:02:37]} 12. Nd2 {[%emt 0:03:25]} O-O-O {[%emt 0:00:22]} 13. b4 {[%emt 0:04:59]} h5 {[%emt 0:01:09]} 14. Nb3 {[%emt 0:03:52]} g5 {[%emt 0:03:04]} 15. Rf1 {[%emt 0:11:25]} g4 {[%emt 0:00:34]} 16. Qg3 {[%emt 0:04:26]} f5 {[%emt 0:02:04]} 17. a4 {[%emt 0:05:44]} h4 {[%emt 0:01:46]} 18. Qf2 {[%emt 0:02:45]} gxh3 {[%emt 0:01:20]} 19. exf5 {[%emt 0:02:39]} hxg2 {[%emt 0:00:24]} 20. Qxg2 {[%emt 0:00:15]} a6 {[%emt 0:03:11]} 21. e4 {[%emt 0:11:27]} Nf6 {[%emt 0:01:10]} 22. Bd3 {[%emt 0:02:28]} Rdg8 {[%emt 0:00:40]} 23. Qf2 {[%emt 0:00:53]} Kb8 {[%emt 0:01:20]} 24. Rh1 {[%emt 0:08:16]} Rg3 {[%emt 0:01:05]} 25. Rxh4 {[%emt 0:02:07]} Rxh4 {[%emt 0:00:30]} 26. Qxg3 {[%emt 0:00:31]} Rh1+ {[%emt 0:00:05]} 27. Kd2 {[%emt 0:00:41]} Rxa1 {[%emt 0:00:31]} 28. Nxa1 {[%emt 0:00:10]} Qxa4 {[%emt 0:00:08]} 29. Nc2 {[%emt 0:01:01]} a5 {[%emt 0:00:45]} 30. Qg7 {[%emt 0:01:11]} Neg8 {[%emt 0:00:55]} 31. Qf8+ {[%emt 0:02:00]} Ka7 {[%emt 0:00:21]} 32. Qd8 {[%emt 0:01:47]} Kb6 {[%emt 0:01:16]} 33. Ne3 {[%emt 0:02:37]} Qa2+ {[%emt 0:02:15]} 34. Kc1 {[%emt 0:04:58]} Qa1+ {[%emt 0:00:43]} 35. Kc2 {[%emt 0:00:31]} axb4 {[%emt 0:01:14]} 36. cxb4 {[%emt 0:01:55]} Qa2+ {[%emt 0:00:28]} 37. Kc3 {[%emt 0:01:03]} Qa3+ {[%emt 0:05:31]} 38. Kc4 {[%emt 0:00:59]} Nxe4 {[%emt 0:01:07]} 39. Bxe4 {[%emt 0:00:45]} Qxe3 {[%emt 0:00:11]} 40. Bd3 {[%emt 0:00:20]} Qd4+ {[%emt 0:00:22]} 41. Kb3 {[%emt 0:00:17]} Qxd3+ {[%emt 0:00:16]} 42. Ka4 {[%emt 0:00:32]} Qxd5 {[%emt 0:00:25]} 43. Ka3 {[%emt 0:01:22]} e4 {[%emt 0:01:01]} 44. f6 {[%emt 0:00:26]} Nxf6 {[%emt 0:01:51]} 45. Qxf6 {[%emt 0:00:08]} e3 {[%emt 0:00:13]} 46. Qf1 {[%emt 0:00:39]} c5 {[%emt 0:01:25]} 47. Ka4 {[%emt 0:00:38]} Qa2# {[%emt 0:00:57]} 0-1

[Event "ONJK-B 2019"]
[Site "Borne"]
[Date "2019.08.05"]
[Round "1.15"]
[White "Heskes, Johan"]
[Black "Berghuis, Rowin"]
[Result "1-0"]
[ECO "D06"]
[WhiteElo "1535"]
[BlackElo "1081"]
[Annotator "NA"]
[PlyCount "77"]
[EventDate "2019.08.05"]
[EventType "swiss"]
[EventCountry "NED"]
[SourceTitle "playchess.com"]
[Source "ChessBase"]
[SourceQuality "1"]
[TimeControl "5400+30"]

1. d4 {[%emt 0:00:00]} d5 {[%emt 0:00:00]} 2. c4 {[%emt 0:00:00]} c6 {[%emt 0:00:14]} 3. Nc3 {[%emt 0:00:00]} Bf5 {[%emt 0:00:55]} 4. Bf4 {[%emt 0:00:18]} e6 {[%emt 0:01:01]} 5. c5 {[%emt 0:00:46]} b6 {[%emt 0:01:44]} 6. b4 {[%emt 0:00:11]} a5 {[%emt 0:04:08]} 7. a3 {[%emt 0:00:24]} Nf6 {[%emt 0:01:14]} 8. e3 {[%emt 0:01:16]} g6 {[%emt 0:02:04]} 9. Nf3 {[%emt 0:01:47]} Bg7 {[%emt 0:02:08]} 10. Bd6 {[%emt 0:03:51]} Nbd7 {[%emt 0:04:31]} 11. Be2 {[%emt 0:00:43]} Bf8 {[%emt 0:06:34]} 12. Bxf8 {[%emt 0:03:22]} Nxf8 {[%emt 0:00:33]} 13. Ne5 {[%emt 0:00:30]} Qc7 {[%emt 0:01:56]} 14. b5 {[%emt 0:04:56]} cxb5 {[%emt 0:02:50]} 15. Nxb5 {[%emt 0:00:49]} Qb8 {[%emt 0:02:09]} 16. Nd6+ {[%emt 0:00:21]} Ke7 {[%emt 0:01:14]} 17. Nc6+ {[%emt 0:00:14]} Kd7 {[%emt 0:00:33]} 18. Nxb8+ {[%emt 0:00:07]} Rxb8 {[%emt 0:00:13]} 19. g4 {[%emt 0:00:24]} Be4 {[%emt 0:01:01]} 20. f3 {[%emt 0:00:08]} Nxg4 {[%emt 0:00:40]} 21. fxe4 {[%emt 0:00:10]} Nxe3 {[%emt 0:00:26]} 22. Qd2 {[%emt 0:00:14]} Ng2+ {[%emt 0:01:36]} 23. Kf2 {[%emt 0:00:20]} Nh4 {[%emt 0:00:27]} 24. Qg5 {[%emt 0:00:10]} bxc5 {[%emt 0:00:47]} 25. dxc5 {[%emt 0:00:15]} dxe4 {[%emt 0:00:37]} 26. Qxh4 {[%emt 0:00:14]} Kc6 {[%emt 0:02:18]} 27. Qf6 {[%emt 0:00:45]} Nd7 {[%emt 0:00:52]} 28. Qc3 {[%emt 0:00:22]} Nf6 {[%emt 0:01:29]} 29. Bb5+ {[%emt 0:00:31]} Rxb5 {[%emt 0:01:28]} 30. Nxb5 {[%emt 0:00:09]} e3+ {[%emt 0:00:14]} 31. Ke2 {[%emt 0:00:33]} Kxb5 {[%emt 0:02:10]} 32. Rab1+ {[%emt 0:00:25]} Kc6 {[%emt 0:00:30]} 33. Rb6+ {[%emt 0:00:11]} Kd7 {[%emt 0:00:29]} 34. Rd1+ {[%emt 0:00:19]} Nd5 {[%emt 0:00:34]} 35. Qxh8 {[%emt 0:00:27]} Ke7 {[%emt 0:00:54]} 36. Rxd5 {[%emt 0:00:19]} exd5 {[%emt 0:00:12]} 37. Qf6+ {[%emt 0:00:07]} Kd7 {[%emt 0:00:28]} 38. Qd6+ {[%emt 0:00:11]} Kc8 {[%emt 0:00:24]} 39. Rb8# {[%emt 0:00:36]} 1-0

[Event "ONJK-B 2019"]
[Site "Borne"]
[Date "2019.08.05"]
[Round "1.16"]
[White "Kroon, Lindert"]
[Black "Neirynck, Arthur"]
[Result "1/2-1/2"]
[ECO "B56"]
[WhiteElo "1076"]
[BlackElo "1514"]
[Annotator "NA"]
[PlyCount "98"]
[EventDate "2019.08.05"]
[EventType "swiss"]
[EventCountry "NED"]
[SourceTitle "playchess.com"]
[Source "ChessBase"]
[SourceQuality "1"]
[TimeControl "5400+30"]

1. e4 {[%emt 0:00:00]} c5 {[%emt 0:00:00]} 2. Nf3 {[%emt 0:00:00]} d6 {[%emt 0:00:00]} 3. Nc3 {[%emt 0:00:19]} Nf6 {[%emt 0:00:08]} 4. d4 {[%emt 0:00:17]} cxd4 {[%emt 0:00:06]} 5. Nxd4 {[%emt 0:00:07]} g6 {[%emt 0:00:24]} 6. Bd3 {[%emt 0:00:11]} Bg7 {[%emt 0:00:34]} 7. O-O {[%emt 0:00:22]} Nc6 {[%emt 0:00:47]} 8. Nxc6 {[%emt 0:00:27]} bxc6 {[%emt 0:00:16]} 9. Bg5 {[%emt 0:01:28]} O-O {[%emt 0:02:11]} 10. Ne2 {[%emt 0:01:06]} Qa5 {[%emt 0:05:26]} 11. Bf4 {[%emt 0:02:50]} Be6 {[%emt 0:03:55]} 12. b3 {[%emt 0:00:36]} d5 {[%emt 0:07:43]} 13. exd5 {[%emt 0:00:55]} Nxd5 {[%emt 0:01:32]} 14. Bd2 {[%emt 0:00:10]} Qa3 {[%emt 0:06:03]} 15. c3 {[%emt 0:01:14]} Qd6 {[%emt 0:02:03]} 16. Rc1 {[%emt 0:01:55]} Rfd8 {[%emt 0:02:17]} 17. Bc4 {[%emt 0:02:12]} Rd7 {[%emt 0:03:28]} 18. Bxd5 {[%emt 0:00:42]} Qxd5 {[%emt 0:03:51]} 19. Be3 {[%emt 0:02:50]} a6 {[%emt 0:10:39]} 20. Qc2 {[%emt 0:02:49]} Rad8 {[%emt 0:05:57]} 21. Nf4 {[%emt 0:01:11]} Qf5 {[%emt 0:02:18]} 22. Nxe6 {[%emt 0:01:51]} Qxe6 {[%emt 0:05:10]} 23. g3 {[%emt 0:00:56]} Rd3 {[%emt 0:05:05]} 24. Rfd1 {[%emt 0:02:35]} Rxd1+ {[%emt 0:01:32]} 25. Rxd1 {[%emt 0:00:59]} Rxd1+ {[%emt 0:01:05]} 26. Qxd1 {[%emt 0:00:09]} Bxc3 {[%emt 0:02:20]} 27. Qd3 {[%emt 0:00:41]} Be5 {[%emt 0:09:59]} 28. Bh6 {[%emt 0:02:44]} Qc8 {[%emt 0:01:22]} 29. Qe4 {[%emt 0:01:58]} Bf6 {[%emt 0:01:09]} 30. a4 {[%emt 0:00:40]} Qd7 {[%emt 0:02:55]} 31. Qb4 {[%emt 0:01:10]} Qc8 {[%emt 0:03:34]} 32. g4 {[%emt 0:01:07]} e6 {[%emt 0:00:38]} 33. g5 {[%emt 0:00:53]} Bg7 {[%emt 0:01:42]} 34. Qc5 {[%emt 0:02:21]} Qd7 {[%emt 0:03:16]} 35. Qb6 {[%emt 0:01:49]} Qc8 {[%emt 0:02:07]} 36. b4 {[%emt 0:00:35]} Bxh6 {[%emt 0:01:33]} 37. gxh6 {[%emt 0:00:13]} f6 {[%emt 0:00:53]} 38. Qa7 {[%emt 0:01:44]} Qf8 {[%emt 0:01:01]} 39. Qd7 {[%emt 0:00:17]} Qxh6 {[%emt 0:03:04]} 40. Qxe6+ {[%emt 0:00:07]} Kf8 {[%emt 0:01:18]} 41. Qxf6+ {[%emt 0:00:07]} Kg8 {[%emt 0:00:09]} 42. Qe6+ {[%emt 0:00:19]} Kf8 {[%emt 0:00:10]} 43. Qc8+ {[%emt 0:00:31]} Kf7 {[%emt 0:00:41]} 44. Qd7+ {[%emt 0:00:13]} Kf8 {[%emt 0:00:24]} 45. Qxc6 {[%emt 0:00:42]} Qf4 {[%emt 0:00:58]} 46. Qc8+ {[%emt 0:00:56]} Kf7 {[%emt 0:00:37]} 47. Qxa6 {[%emt 0:00:32]} Qg4+ {[%emt 0:00:32]} 48. Kh1 {[%emt 0:01:04]} Qf3+ {[%emt 0:00:13]} 49. Kg1 {[%emt 0:00:11]} Qg4+ {[%emt 0:00:21]} 1/2-1/2

[Event "ONJK-B 2019"]
[Site "Borne"]
[Date "2019.08.06"]
[Round "2.4"]
[White "Hooijmans, Max"]
[Black "Rogge, Parcival"]
[Result "1/2-1/2"]
[ECO "A35"]
[WhiteElo "1559"]
[BlackElo "1743"]
[Annotator "NA"]
[PlyCount "45"]
[EventDate "2019.08.05"]
[EventType "swiss"]
[EventCountry "NED"]
[SourceTitle "playchess.com"]
[Source "ChessBase"]
[SourceQuality "1"]
[TimeControl "5400+30"]

1. e4 {[%emt 0:00:00]} c5 {[%emt 0:00:00]} 2. Nf3 {[%emt 0:00:00]} d6 {[%emt 0:00:00]} 3. c4 {[%emt 0:00:17]} Nc6 {[%emt 0:00:20]} 4. Nc3 {[%emt 0:00:35]} g6 {[%emt 0:01:39]} 5. d4 {[%emt 0:02:03]} cxd4 {[%emt 0:02:40]} 6. Nxd4 {[%emt 0:00:09]} Bg7 {[%emt 0:00:17]} 7. Nxc6 {[%emt 0:01:48]} bxc6 {[%emt 0:00:09]} 8. g3 {[%emt 0:02:12]} Qa5 {[%emt 0:21:21]} 9. Bd2 {[%emt 0:02:38]} Rb8 {[%emt 0:02:08]} 10. Qa4 {[%emt 0:02:10]} Qxa4 {[%emt 0:02:06]} 11. Nxa4 {[%emt 0:00:05]} Bd7 {[%emt 0:05:26]} 12. Rb1 {[%emt 0:01:11]} f5 {[%emt 0:03:12]} 13. Bg2 {[%emt 0:02:49]} c5 {[%emt 0:06:28]} 14. Nc3 {[%emt 0:01:10]} Bc6 {[%emt 0:00:41]} 15. b3 {[%emt 0:01:58]} Nf6 {[%emt 0:01:37]} 16. f3 {[%emt 0:02:30]} fxe4 {[%emt 0:01:21]} 17. Nxe4 {[%emt 0:00:25]} Nxe4 {[%emt 0:00:35]} 18. fxe4 {[%emt 0:00:03]} O-O {[%emt 0:00:38]} 19. Bf4 {[%emt 0:01:01]} Bd4 {[%emt 0:00:42]} 20. Ke2 {[%emt 0:02:32]} Rf6 {[%emt 0:04:22]} 21. Be3 {[%emt 0:02:35]} Re6 {[%emt 0:03:29]} 22. Kd3 {[%emt 0:04:00]} Bg7 {[%emt 0:12:15]} 23. Rhf1 {[%emt 0:01:15]} 1/2-1/2

[Event "ONJK-B 2019"]
[Site "Borne"]
[Date "2019.08.06"]
[Round "2.5"]
[White "Baselmans, Daan"]
[Black "Hubers, Daan"]
[Result "0-1"]
[ECO "C61"]
[WhiteElo "1720"]
[BlackElo "1512"]
[Annotator "NA"]
[PlyCount "84"]
[EventDate "2019.08.05"]
[EventType "swiss"]
[EventCountry "NED"]
[SourceTitle "playchess.com"]
[Source "ChessBase"]
[SourceQuality "1"]
[TimeControl "5400+30"]

1. e4 {[%emt 0:00:00]} e5 {[%emt 0:00:00]} 2. Nf3 {[%emt 0:00:00]} Nc6 {[%emt 0:00:14]} 3. Bb5 {[%emt 0:00:00]} Nd4 {[%emt 0:03:14]} 4. Nxd4 {[%emt 0:00:55]} exd4 {[%emt 0:00:41]} 5. d3 {[%emt 0:00:21]} a6 {[%emt 0:05:22]} 6. Ba4 {[%emt 0:01:28]} b5 {[%emt 0:01:46]} 7. Bb3 {[%emt 0:00:07]} Bb7 {[%emt 0:01:38]} 8. c3 {[%emt 0:04:29]} c5 {[%emt 0:02:52]} 9. cxd4 {[%emt 0:00:52]} cxd4 {[%emt 0:00:32]} 10. Bf4 {[%emt 0:00:33]} Nf6 {[%emt 0:02:32]} 11. O-O {[%emt 0:01:39]} Be7 {[%emt 0:01:17]} 12. Nd2 {[%emt 0:00:43]} O-O {[%emt 0:01:31]} 13. Nf3 {[%emt 0:02:07]} Qb6 {[%emt 0:01:01]} 14. Be5 {[%emt 0:00:15]} Bc5 {[%emt 0:02:15]} 15. Nh4 {[%emt 0:06:19]} Rfe8 {[%emt 0:07:25]} 16. f4 {[%emt 0:08:04]} d5 {[%emt 0:11:42]} 17. Bxf6 {[%emt 0:26:19]} Qxf6 {[%emt 0:01:12]} 18. Nf3 {[%emt 0:01:12]} dxe4 {[%emt 0:08:04]} 19. Ng5 {[%emt 0:01:18]} Re7 {[%emt 0:05:09]} 20. dxe4 {[%emt 0:03:45]} Bxe4 {[%emt 0:02:48]} 21. Nxe4 {[%emt 0:00:23]} Rxe4 {[%emt 0:06:12]} 22. Bd5 {[%emt 0:00:07]} Rae8 {[%emt 0:01:44]} 23. Bxe4 {[%emt 0:01:04]} Rxe4 {[%emt 0:00:06]} 24. Qc2 {[%emt 0:00:09]} Qe7 {[%emt 0:02:11]} 25. Rac1 {[%emt 0:01:02]} Bb6 {[%emt 0:03:30]} 26. Qc8+ {[%emt 0:01:10]} Bd8 {[%emt 0:02:39]} 27. Qa8 {[%emt 0:00:30]} d3 {[%emt 0:01:43]} 28. Qd5 {[%emt 0:00:14]} Qa7+ {[%emt 0:03:33]} 29. Kh1 {[%emt 0:00:37]} Rd4 {[%emt 0:00:15]} 30. Qe5 {[%emt 0:01:47]} Qd7 {[%emt 0:02:21]} 31. Rfe1 {[%emt 0:10:18]} g6 {[%emt 0:10:16]} 32. Qe8+ {[%emt 0:09:07]} Qxe8 {[%emt 0:00:00]} 33. Rxe8+ {[%emt 0:00:02]} Kg7 {[%emt 0:00:00]} 34. b4 {[%emt 0:02:44]} Kf6 {[%emt 0:00:00]} 35. g3 {[%emt 0:01:41]} Be7 {[%emt 0:00:00]} 36. a3 {[%emt 0:01:11]} Rc4 {[%emt 0:00:00]} 37. Rc8 {[%emt 0:00:55]} d2 {[%emt 0:00:00]} 38. Rd1 {[%emt 0:03:20]} Rxc8 {[%emt 0:00:00]} 39. Rxd2 {[%emt 0:00:03]} Rc3 {[%emt 0:00:00]} 40. Ra2 {[%emt 0:00:55]} Kf5 {[%emt 0:00:00]} 41. Kg2 {[%emt 0:00:34]} Bf6 {[%emt 0:00:00]} 42. h3 {[%emt 0:01:10]} Rb3 {[%emt 0:04:23]} 0-1